Cogmind - Beta 13 @@@ ROGUE MODE // 2024.04.20 @ 13:59:30 Player: YBOUZL Result: Destroyed by G-47 Trooper with Particle Gun Performance ------------- Evolutions (2) 1000 Regions Visited (6) 1200 Robots Destroyed (31) 155 Value Destroyed (1229) 1229 Prototype IDs (1) 20 Alien Tech Used (0) 0 Bonus (233) 233 TOTAL SCORE: 3837 Bonus ------- High Alert Combat Kills 33 Entered Garrisons 200 Cogmind --------- Core Integrity 0/550 Matter 270/300 Energy 46/100 System Corruption 0% Temperature Cool (40) Movement Core (300) Ox5 Location -8/Materials Parts ------- > --- POWER (2) -------- (None) > --- PROPULSION (3) --- (None) > --- UTILITY (3) ------ Reactive Plating > --- WEAPON (3) ------- Shock Rifle Shock Rifle > --- INVENTORY (5) ---- (None) Peak State ------------ > --- POWER ------------ Heavy Ion Engine Heavy Ion Engine > --- PROPULSION ------- Light Treads Light Treads Light Treads > --- UTILITY ---------- Propulsion Shielding Light Armor Plating > --- WEAPON ----------- Particle Cannon Rocket Launcher > --- INVENTORY -------- Signal Interpreter Assault Rifle Light Assault Rifle [Rating: 15] Favorites ----------- Power Heavy Ion Engine Engine Heavy Ion Engine Propulsion Light Treads Treads Light Treads Utility Propulsion Shielding Device High-powered Tractor Beam Processor Signal Interpreter Protection Propulsion Shielding Weapon Particle Cannon Energy Gun Particle Gun Energy Cannon Particle Cannon Ballistic Gun Assault Rifle Launcher Rocket Launcher Special Weapon Mining Laser Impact Weapon Heavy Mace Build | -11 -10 -10 -9 -9 -9 -8 ------- Run | Yrd Mat Min Mat Sto Gar Mat Slots Evolved 4 | . . . 2 . . 2 Power 1 | . . . 1 . . . Propulsion 1 | . . . 1 . . . Utility 1 | . . . . . . 1 Weapon 1 | . . . . . . 1 Parts Attached 51 | 5 14 . 3 3 17 9 Power 7 | 1 2 . . 2 2 . Engine 7 | 1 2 . . 2 2 . Core . | . . . . . . . Reactor . | . . . . . . . Propulsion 12 | 2 4 . 1 . 5 . Treads 12 | 2 4 . 1 . 5 . Leg . | . . . . . . . Wheel . | . . . . . . . Hover . | . . . . . . . Flight . | . . . . . . . Utility 10 | . 1 . 1 1 3 4 Device 4 | . . . . . 1 3 Storage . | . . . . . . . Processor 1 | . . . . 1 . . Hackware . | . . . . . . . Protection 5 | . 1 . 1 . 2 1 Artifact . | . . . . . . . Weapon 22 | 2 7 . 1 . 7 5 Energy Gun 7 | . . . . . 3 4 Energy Cannon 4 | . 4 . . . . . Ballistic Gun 8 | 2 2 . . . 4 . Ballistic Cannon . | . . . . . . . Launcher 1 | . . . 1 . . . Special Weapon 1 | . 1 . . . . . Impact Weapon 1 | . . . . . . 1 Slashing Weapon . | . . . . . . . Piercing Weapon . | . . . . . . . Special Melee Weapon . | . . . . . . . Unidentified Prototypes 1 | . . . . 1 . . Parts Lost 28 | . 1 . . . 22 5 Power 4 | . . . . . 4 . Propulsion 7 | . . . . . 7 . Utility 7 | . . . . . 4 3 Weapon 10 | . 1 . . . 7 2 Highest Loss Streak 9 | . 1 . . . 9 5 To Critical Strikes . | . . . . . . . Average Slot Usage (%) 63 | . 69 85 73 96 62 20 Engine 13 | . 13 14 11 18 16 . Treads 19 | . 24 28 25 33 18 . Device 2 | . . . . . 1 9 Processor 1 | . . . . 3 3 . Protection 7 | . 5 14 14 18 4 . Energy Gun 2 | . . . . . 3 8 Energy Cannon 5 | . 5 14 11 11 3 . Ballistic Gun 6 | . 17 14 4 . 7 . Launcher 3 | . . . 6 11 3 . Naked Turns 94 | . 8 . . . 34 52 Heaviest Build 28 | 6 14 14 19 28 27 16 Greatest Support 60 | 40 40 40 60 60 60 3 Greatest Overweight (x) 6 | . 3 . . . 6 5 Average Overweight (x) . | . . . . . . . Largest Inventory Capacity 5 | 5 5 5 5 5 5 5 Average Capacity 5 | 5 5 5 5 5 5 5 Most Carried 5 | 3 5 2 5 4 5 1 Average Carried 1 | . 1 1 2 3 2 . Final Capacity 5 | 5 5 5 5 5 5 5 Final Carried 3 | . 1 2 3 3 . . Class Distribution -------------------- 79% | Mutant 20% | Scavenger-Mutant Dominant Class ---------------- Mutant | -10/Materials Mutant | -10/Mines Mutant | -9/Materials Mutant | -9/Storage Scavenger-Mutant | -9/Garrison Mutant | -8/Materials Resources | -11 -10 -10 -9 -9 -9 -8 ----------- Run | Yrd Mat Min Mat Sto Gar Mat Matter Collected 899 | 219 11 . 142 165 302 60 Remotely 50 | . . . . . . 50 Salvage Created 1171 | . 11 . 214 217 616 113 Parts 59 | . 1 . 16 13 27 2 Haulers Intercepted . | . . . . . . . Recyclers Shooed . | . . . . . . . Parts Field Recycled . | . . . . . . . Retrieved Matter . | . . . . . . . Parts Self-Destructed . | . . . . . . . Prevented . | . . . . . . . Kills | -11 -10 -10 -9 -9 -9 -8 ------- Run | Yrd Mat Min Mat Sto Gar Mat Combat Hostiles Destroyed 29 | . . . 6 6 14 3 Melee 1 | . . . . . . 1 Guns 10 | . . . . . 9 1 Cannons 4 | . . . 1 1 2 . AOE 13 | . . . 5 5 3 . Classes Destroyed 7 | . 1 . 3 1 2 . Operator 1 | . 1 . . . . . Watcher 1 | . . . 1 . . . Grunt 18 | . . . 4 4 7 3 Brawler 1 | . . . . . 1 . Duelist 1 | . . . . 1 . . Sentry 8 | . . . 2 1 5 . Programmer 1 | . . . . . 1 . Best Kill Streak 7 | . 1 . 7 5 3 1 Combat Bots Only 6 | . . . 6 5 3 1 Max Kills in Single Turn 3 | . 1 . 2 3 1 1 Gunslinging . | . . . . . . . Exploded 3 | . . . 1 3 1 . Melee 1 | . . . . . . 1 Uniques/NPCs Destroyed . | . . . . . . . Combat | -11 -10 -10 -9 -9 -9 -8 -------- Run | Yrd Mat Min Mat Sto Gar Mat Hostile Shots Fired 271 | . . . 15 5 181 70 Missed 65 | . . . 4 2 48 11 Damage Taken 3330 | . 206 . 174 61 1944 945 Core 1067 | . 106 . 29 15 353 564 Absorbed by Shields . | . . . . . . . Redirected to Shielding 53 | . . . 17 8 28 . Core Remaining (%) 52 | 100 . 57 . . . . Volleys Fired 99 | . 10 . 9 7 60 13 Largest 2 | . 2 . 2 2 2 2 Hottest 130 | . 120 . 101 101 101 130 Shots Fired 162 | . 14 . 18 12 98 20 Gun 106 | . 7 . 4 . 75 20 Cannon 31 | . . . 9 7 15 . Launcher 18 | . . . 5 5 8 . Special 7 | . 7 . . . . . Kinetic 58 | . 7 . 4 . 47 . Thermal 84 | . 7 . 9 7 43 18 Explosive 18 | . . . 5 5 8 . Electromagnetic 2 | . . . . . . 2 Robot Hit Streak 11 | . 3 . 5 3 11 7 Robot Miss Streak 7 | . 1 . 3 4 5 7 Penetration Max . | . . . . . . . Secondary Targets . | . . . . . . . Shots Hit Robots 98 | . 4 . 10 4 61 19 Core Hits 64 | . 2 . 12 9 32 9 Critical Kills 1 | . . . . . . 1 Critical Parts Destroyed . | . . . . . . . Critical Strikes 2 | . . . . . . 2 Burn 1 | . . . . . . 1 Smash 1 | . . . . . . 1 Melee Attacks 9 | . . . . . . 9 Impact 9 | . . . . . . 9 Slashing . | . . . . . . . Piercing . | . . . . . . . Sneak Attacks . | . . . . . . . Combat Hostiles . | . . . . . . . Follow-up Attacks . | . . . . . . . Damage Inflicted 2207 | . 34 . 421 307 1069 376 Guns 847 | . 34 . 24 . 622 167 Cannons 330 | . . . 101 60 169 . Explosions 821 | . . . 296 247 278 . Melee 203 | . . . . . . 203 Ramming 6 | . . . . . . 6 Kinetic 396 | . 34 . 24 . 338 . Thermal 749 | . . . 101 60 453 135 Explosive 821 | . . . 296 247 278 . Electromagnetic 32 | . . . . . . 32 Impact 203 | . . . . . . 203 Slashing . | . . . . . . . Piercing . | . . . . . . . Highest Corruption 5 | . 5 5 . . 4 . Average Corruption 4 | . 5 5 . . 4 . Corruption Purged . | . . . . . . . Corruption Blocked . | . . . . . . . Effects 8 | . . 1 . . 7 . Message Errors 3 | . . . . . 3 . Heat Flow Errors 2 | . . 1 . . 1 . Energy Discharges 1 | . . . . . 1 . Data Loss (minor) 2 | . . . . . 2 . Overload Shots . | . . . . . . . Overflow Damage 42 | . . . 11 . . 31 Projectiles 11 | . . . 11 . . . Explosions . | . . . . . . . Melee 31 | . . . . . . 31 Knockbacks 1 | . . . . . . 1 Impact 1 | . . . . . . 1 Kinetic . | . . . . . . . Secondary . | . . . . . . . Self-Inflicted Damage 167 | . . . 45 26 93 3 Shots 6 | . . . 2 1 3 . Rammed 1 | . . . . . . 1 Targets Rammed 1 | . . . . . . 1 Kicked . | . . . . . . . Crushed . | . . . . . . . Highest Temperature 468 | . 120 278 103 270 468 57 Average Temperature 125 | . 47 145 40 118 158 17 Received Heat Transfer 1521 | . . . 60 12 900 549 Effects 8 | . . . . . 8 . Shutdowns 2 | . . . . . 2 . Interference 3 | . . . . . 3 . Damage (minor) 2 | . . . . . 2 . Damage (major) 1 | . . . . . 1 . Siege Activations . | . . . . . . . Robots Corrupted . | . . . . . . . Combat Hostiles . | . . . . . . . Parts Fried 1 | . . . . . . 1 Impact Corruptions 2 | . . . . . . 2 Robots Melted . | . . . . . . . Combat Hostiles . | . . . . . . . Parts Melted 2 | . . . . . . 2 Heat Transferred 1632 | . . . 185 111 980 356 Parts Sabotaged . | . . . . . . . Parts Stolen . | . . . . . . . Parts Stripped . | . . . . . . . Power Chain Reactions . | . . . . . . . Alert | -11 -10 -10 -9 -9 -9 -8 ------- Run | Yrd Mat Min Mat Sto Gar Mat Peak Influence 471 | . 11 . 230 343 471 315 Initial 222 | . . . . 96 222 204 Average 234 | . 3 . 114 254 389 292 Maximum Alert Level 2 | . . . 1 1 2 1 Low Security (%) 36 | 100 100 100 68 41 . . Level 1 49 | . . . 31 58 61 100 Level 2 13 | . . . . . 38 . Level 3 . | . . . . . . . Level 4 . | . . . . . . . Level 5 . | . . . . . . . High Security . | . . . . . . . Max Security . | . . . . . . . Squads Dispatched 4 | . 1 . 1 1 . 1 Investigation 2 | . . . . 1 . 1 Extermination . | . . . . . . . Reinforcement 2 | . 1 . 1 . . . Assault . | . . . . . . . Garrison . | . . . . . . . Intercept . | . . . . . . . Searches Triggered . | . . . . . . . Construction Impeded . | . . . . . . . Haulers Reinforced . | . . . . . . . Active Scanning Responses . | . . . . . . . Cargo Convoy Interrupts . | . . . . . . . Stealth | -11 -10 -10 -9 -9 -9 -8 --------- Run | Yrd Mat Min Mat Sto Gar Mat Distress Signals 2 | . . . 2 . . . Communications Jammed . | . . . . . . . Distress Signals . | . . . . . . . Times Spotted 45 | . 2 . 10 5 16 12 Peak Tracking Total 8 | . 2 . 6 4 5 8 Tactical Retreats 1 | . . . . . 1 . Traps | -11 -10 -10 -9 -9 -9 -8 ------- Run | Yrd Mat Min Mat Sto Gar Mat Traps Triggered 4 | . 4 . . . . . Indirectly . | . . . . . . . Trap Hack Attempts . | . . . . . . . Triggered . | . . . . . . . Disarmed 6 | . . . . 6 . . Reprogrammed . | . . . . . . . Reused . | . . . . . . . Traps Extracted . | . . . . . . . Installed . | . . . . . . . Triggered . | . . . . . . . Machines | -11 -10 -10 -9 -9 -9 -8 ---------- Run | Yrd Mat Min Mat Sto Gar Mat Machines Disabled 3 | . . . 1 2 . . Max in Single Turn 1 | . . . 1 1 . . Garrison Access 1 | . . . . . . 1 Machines Repaired . | . . . . . . . Machines Dismantled . | . . . . . . . Machines Sabotaged . | . . . . . . . Overloaded Fab Kills . | . . . . . . . Hacking | -11 -10 -10 -9 -9 -9 -8 --------- Run | Yrd Mat Min Mat Sto Gar Mat Machines Accessed 5 | . . . . 2 . 3 Terminals 3 | . . . . 1 . 2 Fabricators . | . . . . . . . Repair Stations . | . . . . . . . Recycling Units . | . . . . . . . Scanalyzers . | . . . . . . . Garrison Access 2 | . . . . 1 . 1 Total Hacks 18 | . . . . 10 . 8 Successful 11 | . . . . 5 . 6 Failed 7 | . . . . 5 . 2 Catastrophic . | . . . . . . . Database Lockouts . | . . . . . . . Manual . | . . . . . . . Terminals 14 | . . . . 8 . 6 Fabricators . | . . . . . . . Repair Stations . | . . . . . . . Recycling Units . | . . . . . . . Scanalyzers . | . . . . . . . Garrison Access 4 | . . . . 2 . 2 Terminal Hacks 8 | . . . . 4 . 4 Record 1 | . . . . . . 1 Alert Level 1 | . . . . . . 1 Locate Traps 1 | . . . . 1 . . Disarm Traps 1 | . . . . 1 . . Dispatch Records 1 | . . . . . . 1 Surveillance Status 1 | . . . . . . 1 Extermination Status 1 | . . . . 1 . . Hauler Manifests 1 | . . . . 1 . . Fabricator Hacks . | . . . . . . . Repair Station Hacks . | . . . . . . . Recycling Unit Hacks . | . . . . . . . Scanalyzer . | . . . . . . . Garrison Access Hacks 3 | . . . . 1 . 2 Unlock Access 1 | . . . . 1 . . Seal Access 1 | . . . . . . 1 Coupler Status 1 | . . . . . . 1 Unauthorized Hacks . | . . . . . . . Terminals . | . . . . . . . Fabricators . | . . . . . . . Repair Stations . | . . . . . . . Recycling Units . | . . . . . . . Scanalyzers . | . . . . . . . Garrison Access . | . . . . . . . Data Cores Recovered . | . . . . . . . Used . | . . . . . . . Hacking Detections 4 | . . . . 2 . 2 Full Trace Events 3 | . . . . 1 . 2 Feedback Events . | . . . . . . . Feedback Blocked . | . . . . . . . Robot Schematics Acquired . | . . . . . . . Robots Built . | . . . . . . . Authchips . | . . . . . . . Time . | . . . . . . . Total Robot Build Rating . | . . . . . . . Part Schematics Acquired . | . . . . . . . Parts Built . | . . . . . . . Authchips . | . . . . . . . Time . | . . . . . . . Total Part Build Rating . | . . . . . . . Parts Repaired . | . . . . . . . Time . | . . . . . . . Parts Recycled . | . . . . . . . Recycled Matter . | . . . . . . . Retrieved Matter . | . . . . . . . Retrieved Components . | . . . . . . . Parts Scanalyzed . | . . . . . . . Part Schematics Acquired . | . . . . . . . Parts Damaged . | . . . . . . . Bothacking | -11 -10 -10 -9 -9 -9 -8 ------------ Run | Yrd Mat Min Mat Sto Gar Mat Used RIF Installer . | . . . . . . . Robots Hacked . | . . . . . . . Non-combat . | . . . . . . . Combat . | . . . . . . . Robot Hacks Applied . | . . . . . . . Relay Couplers Released 4 | . . . . . 4 . Programmers 4 | . . . . . 4 . Fabnet Peak Effective % . | . . . . . . . Robots Rewired . | . . . . . . . Allies Hacked . | . . . . . . . Hacks Repelled . | . . . . . . . Allies | -11 -10 -10 -9 -9 -9 -8 -------- Run | Yrd Mat Min Mat Sto Gar Mat Total Allies . | . . . . . . . Largest Group . | . . . . . . . Highest-Rated Group . | . . . . . . . Highest-Rated Ally . | . . . . . . . Total Orders . | . . . . . . . Ally Attacks . | . . . . . . . Total Damage . | . . . . . . . Kills . | . . . . . . . Allies Corrupted . | . . . . . . . Allies Melted . | . . . . . . . Intel | -11 -10 -10 -9 -9 -9 -8 ------- Run | Yrd Mat Min Mat Sto Gar Mat Robot Analysis Total . | . . . . . . . Derelict Logs Recovered . | . . . . . . . Drone Launches . | . . . . . . . Drone Recoveries . | . . . . . . . Exploration | -11 -10 -10 -9 -9 -9 -8 ------------- Run | Yrd Mat Min Mat Sto Gar Mat Turns Passed 1377 | 79 229 49 87 218 492 223 Spaces Moved 755 | 51 106 31 34 121 230 182 Core 279 | 10 11 . . . 76 182 Treads 476 | 41 95 31 34 121 154 . Legs . | . . . . . . . Wheels . | . . . . . . . Hover . | . . . . . . . Flight . | . . . . . . . Fastest Speed 50 | 50 50 160 160 160 50 50 Average Speed 130 | 138 155 160 160 160 132 81 Slowest Speed 350 | 160 200 160 160 160 350 300 Overloaded Moves . | . . . . . . . Propulsion Burnouts . | . . . . . . . Robots Hopped . | . . . . . . . Cave-ins Triggered 1 | . 1 . . . . . Exploration Rate (%) 17 | 4 21 18 9 12 47 12 Regions Visited 6 Branch Regions 2 Pre-discovered Areas . | . . . . . . . Known Exits Taken 1 | . . . . 1 . . Unknown Exits Taken 4 | 1 1 1 1 . . . Scrap Searched . | . . . . . . . Spaces Dug 7 | . 7 . . . . . Terrain Destroyed 142 | . 7 . 52 44 39 . Melee . | . . . . . . . Projectile 10 | . 7 . 1 . 2 . AOE 132 | . . . 51 44 37 . Terrain Rammed . | . . . . . . . Walls Destroyed . | . . . . . . . Machines Disabled . | . . . . . . . Actions | -11 -10 -10 -9 -9 -9 -8 --------- Run | Yrd Mat Min Mat Sto Gar Mat Total 962 | 60 143 31 48 135 321 224 Wait . | . . . . . . . Move 749 | 50 105 30 33 120 229 182 Hop . | . . . . . . . Pick Up 45 | 5 11 1 3 3 13 9 Fast Attach 1 | . 1 . . . . . Attach 45 | 5 12 . 2 3 14 9 Detach 2 | . 2 . . . . . Swap 6 | . 1 . 1 . 4 . Drop 5 | . 1 . . 2 1 1 Fire 99 | . 10 . 9 7 60 13 Melee 9 | . . . . . . 9 Ram 1 | . . . . . . 1 Kick . | . . . . . . . Crush . | . . . . . . . Escape Stasis . | . . . . . . . Rewire . | . . . . . . . Trap . | . . . . . . . Miscellaneous . | . . . . . . . Route ------- -11/Scrapyard -10/Materials -10/Mines -9/Materials -9/Storage -9/Garrison -8/Materials History --------- Turn | Location | Event 6 | -11/Scrapyard | Discovered new exit (range 15) 80 | -11/Scrapyard | Entered Materials 191 | -10/Materials | Discovered new exit (range 12) 301 | -10/Materials | Crushed by falling debris 304 | -10/Materials | Build established: Mutant 309 | -10/Materials | Entered Mines 316 | -10/Mines | Received a Rocket Launcher from a helpful Derelict 344 | -10/Mines | Discovered new exit (range 11) 358 | -10/Mines | Entered Materials 358 | -9/Materials | Evolved 2 slots: Power x1, Propulsion x1 435 | -9/Materials | Discovered new exit (range 7) 445 | -9/Materials | Entered Storage 659 | -9/Storage | Identified exit to Garrison 663 | -9/Storage | Entered Garrison 898 | -9/Garrison | Lost 9 parts (4n2u3w) 921 | -9/Garrison | Triggered checkpoint 930 | -9/Garrison | Core integrity fell below 50% 987 | -9/Garrison | Lost 4 parts (2p1n1u) 1007 | -9/Garrison | Triggered checkpoint 1071 | -9/Garrison | Triggered checkpoint 1108 | -9/Garrison | Core integrity fell below 20% 1151 | -9/Garrison | Discovered new exit (range 10) 1152 | -9/Garrison | Lost 7 parts (2p2n3w) 1155 | -9/Garrison | Entered Materials 1155 | -8/Materials | Evolved 2 slots: Utility x1, Weapon x1 1225 | -8/Materials | Core integrity fell below 50% 1340 | -8/Materials | Core integrity fell below 20% 1378 | -8/Materials | Destroyed by G-47 Trooper with Particle Gun Last Messages --------------- G-47 Trooper suffers critical hit (Burn). Hpw. Tractor Beam destroyed. Aluminum Leg melted. G-47 Trooper destroyed. Imp. Heat Sink destroyed. Acquired Imp. Heat Sink. Acquired 10 matter. Particle Gun destroyed. Critical hit (Burn: +37). Slammed into G-50 Soldier. Imp. Heat Sink destroyed. Connecting with Terminal... K-01 Serf collects debris. Acquired Reactive Plating. K-01 Serf collects debris. Acquired Shock Rifle. K-01 Serf collects debris. Acquired Shock Rifle. Purification Channel disabled. K-01 Serf collects debris. Map ----- +----------------------------------------------------+ | ???????# # #???????????????????????????? | | ???????# / """"" #???????????????????????????? | | ???????# #%""T"" #???????????????????????????? | | ???????# # % #???????????????????????????? | | ???????# ###########???????????????????????????? | | ???????# ##########????????????????????????????? | | ???????# # #????????????????????????????? | | ######## # #????????????????????????????? | | # + # #????????????????????????????? | | # """ # # #????????????????????????????? | | # "G" # + #????????????????????????????? | | # " " # # #????????????????????????????? | | # # # #????????????????????????????? | | # # # #######??????????????????????? | | ####+### # #"""""#??????????????????????? | | #%//! +% ##########""T""###############????????? | | # / # ????????? | | # /! # ????????? | | # # "^""""" ????????? | | # ####### """"""""" ######### ???????????? | | # #?????# gg "" """ #????????????????????? | | ########?????# a #????????????????????? | | ?????????????# #????????????????????? | | ?????????????# k #????????????????????? | | ?????????????# w !b #????????????????????? | | ?????????????# @ #????????????????????? | | ????????? #????????????????????? | | ????????? #????????????????????? | | ??????????#### #????????????????????? | | ?????????????#! g ???????????????????? | | ?????????????# ########g +??????????????????? | | ?????????????######???????? #??????????????????? | | ??????????????????????????? #??????????????????? | | ??????????????????????????? #??????????????????? | | ??????????????????????????? a#??????????????????? | | ??????????????????????????? r#??????????????????? | | ??????????????????????????? ??????????????????? | | ??????????????????????????? ??????????????????? | | ????????????????????????????? ?????????????????? | | ?????????????????????????????#???????????????????? | | ?????????????????????????????????????????????????? | | ?????????????????????????????????????????????????? | | ?????????????????????????????????????????????????? | | ?????????????????????????????????????????????????? | | ?????????????????????????????????????????????????? | | ?????????????????????????????????????????????????? | | ?????????????????????????????????????????????????? | | ?????????????????????????????????????????????????? | | ?????????????????????????????????????????????????? | | ?????????????????????????????????????????????????? | +----------------------------------------------------+ Best States ------------- Heat Dissipation 45 Energy Generation 23 Energy Capacity 460 Matter Stores 300 Matter Capacity 300 Sight Range 16 Terrain Scan Density 10 Armor Coverage 150 Resistance: KI 20 Propulsion Shielding 33 Evasion (%) 50 Recoil Reduction 3 Item Schematics ----------------- None Robot Schematics ------------------ None Fabricated ------------ Nothing Alien Tech Used ----------------- None Achievements -------------- Crack Shot One Hack Too Far Shopping List Challenges ------------ None Game ------ Seed LaserLegReconfigurator Manual? 0 Play Time 00:23:05 Cumulative 1.3 hours Start 2024.04.20 @ 13:37:12 End 2024.04.20 @ 13:59:30 Sessions 1 Manual Loads 0 Difficulty Rogue Special Mode None Game No. 3 Rogue 3 Adventurer 0 Explorer 0 Win Type - Total 0 Types 0/0/0/0/0/0/0/0/0 Lore% 1 Gallery% 5 Achievement% 5 Wizard Run 0 Options --------- Layout 1 ASCII 0 Keyboard 0 Movement Mouse Keybinds 0 Fullscreen 1 Font 24/Smallcaps Map View 50x35 Zoom Use 0% Tactical HUD 0 Map Filters NONE Filters NONE Steam 1 RUN: 5d0aa272-3837-4fd1-86f2-2e23237e0451